Cogmind - Beta 12 *** ADVENTURER MODE // 2023.09.08 @ 20:07:30 Player: EnemyLemon Result: Destroyed by as-47159 with Assembled Heavy Rifle Performance ------------- Evolutions (0) 0 Regions Visited (2) 400 Robots Destroyed (31) 155 Value Destroyed (388) 388 Prototype IDs (0) 0 Alien Tech Used (0) 0 Bonus (-9) -9 TOTAL SCORE: 934 Bonus ------- Friendly Fire -9 Cogmind --------- Core Integrity 0/250 Matter 263/300 Energy 76/100 System Corruption 1% Temperature Cool (0) Movement Rolling (160) Ox4 Location -10/Mines Parts ------- > --- POWER (1) -------- (None) > --- PROPULSION (2) --- Compact Wheel > --- UTILITY (2) ------ Huge Storage Unit > --- WEAPON (2) ------- (None) > --- INVENTORY (25) --- Light Ion Engine Light Treads Compact Wheel Heat Sink Medium Storage Unit Sensor Array Transport Network Coupler Tractor Beam Field Recycling Unit (0) Small Laser Hammer Peak State ------------ > --- POWER ------------ Ion Engine > --- PROPULSION ------- Compact Wheel Compact Wheel > --- UTILITY ---------- Small Storage Unit Seismic Detector > --- WEAPON ----------- Small Laser Assault Rifle > --- INVENTORY -------- Light Ion Engine Light Treads Wheel Improved Terrain Scanner Tractor Beam Field Recycling Unit Grenade Launcher [Rating: 8] Favorites ----------- Power Ion Engine Engine Ion Engine Propulsion Compact Wheel Wheel Compact Wheel Utility Seismic Detector Device Seismic Detector Storage Huge Storage Unit Weapon Hammer Energy Gun Small Laser Ballistic Gun Assault Rifle Launcher Grenade Launcher Impact Weapon Hammer Build | -11 -10 -10 ------- Run | Jun Mat Min Slots Evolved . | . . . Power . | . . . Propulsion . | . . . Utility . | . . . Weapon . | . . . Parts Attached 29 | 9 16 4 Power 3 | 2 1 . Engine 3 | 2 1 . Core . | . . . Reactor . | . . . Propulsion 9 | 2 4 3 Treads . | . . . Leg . | . . . Wheel 9 | 2 4 3 Hover . | . . . Flight . | . . . Utility 5 | 3 2 . Device 2 | 2 . . Storage 3 | 1 2 . Processor . | . . . Hackware . | . . . Protection . | . . . Artifact . | . . . Weapon 12 | 2 9 1 Energy Gun 2 | 1 1 . Energy Cannon . | . . . Ballistic Gun 3 | 1 2 . Ballistic Cannon . | . . . Launcher 4 | . 3 1 Special Weapon . | . . . Impact Weapon 3 | . 3 . Slashing Weapon . | . . . Piercing Weapon . | . . . Special Melee Weapon . | . . . Unidentified Prototypes . | . . . Parts Lost 7 | . . 7 Power 1 | . . 1 Propulsion 3 | . . 3 Utility 1 | . . 1 Weapon 2 | . . 2 Highest Loss Streak 5 | . . 5 To Critical Strikes . | . . . Average Slot Usage (%) 89 | . 91 82 Engine 7 | . 6 14 Wheel 27 | . 27 26 Device 12 | . 14 1 Storage 14 | . 14 14 Energy Gun 5 | . 6 . Ballistic Gun 6 | . 5 12 Launcher 5 | . 6 . Impact Weapon 9 | . 9 12 Naked Turns . | . . . Heaviest Build 91 | 14 91 90 Greatest Support 32 | 32 32 32 Greatest Overweight (x) 5 | . 5 5 Average Overweight (x) . | . . 2 Largest Inventory Capacity 25 | 8 25 25 Average Capacity 16 | 7 16 25 Most Carried 12 | 4 12 12 Average Carried 9 | 2 9 11 Final Capacity 25 | 8 25 25 Final Carried 12 | 4 12 11 Class Distribution -------------------- 100% | Mutant Dominant Class ---------------- Mutant | -10/Materials Mutant | -10/Mines Resources | -11 -10 -10 ----------- Run | Jun Mat Min Matter Collected 685 | 326 236 123 Remotely 88 | 88 . . Salvage Created 704 | 250 293 161 Parts 69 | 22 32 15 Haulers Intercepted 2 | . 2 . Recyclers Shooed 2 | . 1 1 Parts Field Recycled . | . . . Retrieved Matter . | . . . Parts Self-Destructed . | . . . Prevented . | . . . Kills | -11 -10 -10 ------- Run | Jun Mat Min Combat Hostiles Destroyed 15 | . 9 6 Guns 9 | . 4 5 AOE 6 | . 5 1 Classes Destroyed 9 | 3 5 1 Worker 3 | 2 1 . Builder 3 | . 2 1 Tunneler 6 | 5 . 1 Hauler 2 | . 2 . Recycler 1 | 1 . . Watcher 2 | . 2 . Swarmer 9 | . 6 3 Grunt 5 | . 3 2 Assembled 1 | . . 1 Best Kill Streak 6 | 4 6 3 Combat Bots Only 3 | . 3 3 Max Kills in Single Turn 2 | 1 2 1 Gunslinging 1 | . 1 . Exploded 2 | . 2 1 Melee . | . . . Uniques/NPCs Destroyed . | . . . Combat | -11 -10 -10 -------- Run | Jun Mat Min Damage Taken 780 | . 146 634 Core 264 | . 21 243 Absorbed by Shields . | . . . Core Remaining (%) 100 | 100 . . Volleys Fired 59 | 12 26 21 Largest 2 | 2 2 2 Hottest 60 | 60 60 50 Shots Fired 91 | 24 46 21 Gun 82 | 24 39 19 Cannon . | . . . Launcher 9 | . 7 2 Special . | . . . Kinetic 53 | 12 22 19 Thermal 29 | 12 17 . Explosive 9 | . 7 2 Electromagnetic . | . . . Robot Hit Streak 20 | 10 15 20 Robot Miss Streak 2 | 1 2 . Penetration Max . | . . . Secondary Targets 1 | . 1 . Max Gunslinging Chain 1 | . 1 . Shots Hit Robots 62 | 18 25 19 Core Hits 41 | 9 20 12 Critical Kills . | . . . Critical Parts Destroyed . | . . . Critical Strikes . | . . . Melee Attacks 12 | . 10 2 Impact 12 | . 10 2 Slashing . | . . . Piercing . | . . . Sneak Attacks 2 | . 2 . Combat Hostiles . | . . . Follow-up Attacks . | . . . Damage Inflicted 1370 | 202 810 358 Guns 705 | 202 254 249 Cannons . | . . . Explosions 488 | . 415 73 Melee 177 | . 141 36 Ramming . | . . . Kinetic 446 | 81 116 249 Thermal 259 | 121 138 . Explosive 488 | . 415 73 Electromagnetic . | . . . Impact 177 | . 141 36 Slashing . | . . . Piercing . | . . . Highest Corruption 1 | . 1 1 Average Corruption 1 | . 1 1 Corruption Purged . | . . . Corruption Blocked . | . . . Effects 15 | . 10 5 Message Errors 2 | . 2 . Matter Fused 2 | . 1 1 Heat Flow Errors 4 | . 3 1 Energy Discharges 2 | . 1 1 Data Loss (minor) 1 | . 1 . Data Loss (major) 1 | . . 1 Misfires 1 | . 1 . Weapon Failures 2 | . 1 1 Overload Shots . | . . . Overflow Damage 15 | . 9 6 Projectiles . | . . . Explosions . | . . . Melee 15 | . 9 6 Knockbacks 1 | . 1 . Impact 1 | . 1 . Kinetic . | . . . Secondary . | . . . Self-Inflicted Damage . | . . . Shots . | . . . Rammed . | . . . Targets Rammed . | . . . Kicked . | . . . Crushed . | . . . Highest Temperature 268 | . 268 248 Average Temperature 91 | . 86 99 Received Heat Transfer 225 | . 27 198 Siege Activations . | . . . Robots Corrupted . | . . . Combat Hostiles . | . . . Parts Fried . | . . . Impact Corruptions 2 | . 1 1 Robots Melted . | . . . Combat Hostiles . | . . . Parts Melted 2 | . . 2 Heat Transferred 600 | 275 325 . Parts Sabotaged . | . . . Parts Stolen . | . . . Parts Stripped . | . . . Power Chain Reactions . | . . . Missiles Intercepted . | . . . Alert | -11 -10 -10 ------- Run | Jun Mat Min Peak Influence 272 | 40 272 142 Initial 30 | . 22 30 Average 75 | 20 80 79 Maximum Alert Level 1 | . 1 . Low Security (%) 89 | 100 87 100 Level 1 10 | . 12 . Level 2 . | . . . Level 3 . | . . . Level 4 . | . . . Level 5 . | . . . High Security . | . . . Max Security . | . . . Squads Dispatched 1 | . 1 . Investigation 1 | . 1 . Extermination . | . . . Reinforcement . | . . . Assault . | . . . Garrison . | . . . Intercept . | . . . Searches Triggered . | . . . Construction Impeded . | . . . Haulers Reinforced . | . . . Active Scanning Responses . | . . . Cargo Convoy Interrupts . | . . . Stealth | -11 -10 -10 --------- Run | Jun Mat Min Distress Signals . | . . . Communications Jammed . | . . . Distress Signals . | . . . Times Spotted 39 | . 13 26 Peak Tracking Total 17 | . 4 17 Tactical Retreats . | . . . Traps | -11 -10 -10 ------- Run | Jun Mat Min Traps Triggered 4 | . 4 . Indirectly . | . . . Trap Hack Attempts . | . . . Triggered . | . . . Disarmed 6 | . 6 . Reprogrammed . | . . . Reused . | . . . Traps Extracted . | . . . Installed . | . . . Triggered . | . . . Machines | -11 -10 -10 ---------- Run | Jun Mat Min Machines Disabled . | . . . Max in Single Turn . | . . . Machines Repaired . | . . . Machines Sabotaged . | . . . Overloaded Fab Kills . | . . . Hacking | -11 -10 -10 --------- Run | Jun Mat Min Machines Accessed 10 | . 9 1 Terminals 8 | . 7 1 Fabricators . | . . . Repair Stations . | . . . Recycling Units 2 | . 2 . Scanalyzers . | . . . Garrison Access . | . . . Total Hacks 26 | . 25 1 Successful 16 | . 15 1 Failed 10 | . 10 . Catastrophic 1 | . 1 . Database Lockouts . | . . . Manual 13 | . 13 . Terminals 21 | . 20 1 Fabricators . | . . . Repair Stations . | . . . Recycling Units 5 | . 5 . Scanalyzers . | . . . Garrison Access . | . . . Terminal Hacks 9 | . 8 1 Terminal Index 1 | . 1 . Recycling Unit Index 1 | . 1 . Scanalyzer Index 1 | . 1 . Locate Traps 1 | . 1 . Disarm Traps 1 | . 1 . Patrol Status 1 | . 1 . Zone Layout 3 | . 2 1 Fabricator Hacks . | . . . Repair Station Hacks . | . . . Recycling Unit Hacks 4 | . 4 . Report Inventory 2 | . 2 . Retrieve Components 2 | . 2 . Scanalyzer . | . . . Garrison Access Hacks . | . . . Unauthorized Hacks 3 | . 3 . Terminals 2 | . 2 . Botnet 2 | . 2 . Fabricators . | . . . Repair Stations . | . . . Recycling Units 1 | . 1 . Tunnel 1 | . 1 . Scanalyzers . | . . . Garrison Access . | . . . Data Cores Recovered . | . . . Used . | . . . Hacking Detections 7 | . 7 . Full Trace Events . | . . . Feedback Events . | . . . Feedback Blocked . | . . . Robot Schematics Acquired . | . . . Robots Built . | . . . Authchips . | . . . Time . | . . . Total Robot Build Rating . | . . . Part Schematics Acquired . | . . . Parts Built . | . . . Authchips . | . . . Time . | . . . Total Part Build Rating . | . . . Parts Repaired . | . . . Time . | . . . Parts Recycled . | . . . Recycled Matter . | . . . Retrieved Matter . | . . . Retrieved Components 19 | . 19 . Parts Scanalyzed . | . . . Part Schematics Acquired . | . . . Parts Damaged . | . . . Bothacking | -11 -10 -10 ------------ Run | Jun Mat Min Used RIF Installer . | . . . Robots Hacked . | . . . Non-combat . | . . . Combat . | . . . Robot Hacks Applied . | . . . Relay Couplers Released . | . . . Fabnet Peak Effective % . | . . . Robots Rewired . | . . . Allies Hacked . | . . . Hacks Repelled . | . . . Allies | -11 -10 -10 -------- Run | Jun Mat Min Total Allies . | . . . Largest Group . | . . . Highest-Rated Group . | . . . Highest-Rated Ally . | . . . Total Orders . | . . . Ally Attacks . | . . . Total Damage . | . . . Kills . | . . . Allies Corrupted . | . . . Allies Melted . | . . . Intel | -11 -10 -10 ------- Run | Jun Mat Min Robot Analysis Total . | . . . Derelict Logs Recovered . | . . . Drone Launches . | . . . Drone Recoveries . | . . . Exploration | -11 -10 -10 ------------- Run | Jun Mat Min Turns Passed 1988 | 166 1578 244 Spaces Moved 1060 | 115 802 143 Core 5 | 3 2 . Treads . | . . . Legs . | . . . Wheels 1055 | 112 800 143 Hover . | . . . Flight . | . . . Fastest Speed 50 | 50 100 130 Average Speed 114 | 98 113 133 Slowest Speed 300 | 100 300 175 Overloaded Moves . | . . . Propulsion Burnouts . | . . . Robots Hopped . | . . . Cave-ins Triggered . | . . . Exploration Rate (%) 46 | 3 97 38 Regions Visited 2 Branch Regions 1 Pre-discovered Areas 1 | . 1 . Known Exits Taken . | . . . Unknown Exits Taken 2 | 1 1 . Scrap Searched . | . . . Spaces Dug 5 | . 5 . Terrain Destroyed 44 | . 40 4 Melee 5 | . 5 . Projectile . | . . . AOE 39 | . 35 4 Terrain Rammed . | . . . Walls Destroyed . | . . . Machines Disabled . | . . . Actions | -11 -10 -10 --------- Run | Jun Mat Min Total 1705 | 138 1396 171 Wait 530 | . 530 . Move 1058 | 114 801 143 Hop . | . . . Pick Up 14 | 3 10 1 Fast Attach 13 | 7 6 . Attach 3 | . 1 2 Detach . | . . . Swap 13 | 2 9 2 Drop 3 | . 3 . Fire 59 | 12 26 21 Melee 12 | . 10 2 Ram . | . . . Kick . | . . . Crush . | . . . Escape Stasis . | . . . Rewire . | . . . Trap . | . . . Miscellaneous . | . . . Route ------- -11/Junkyard -10/Materials (discovered 4 exits: [*Mat x3] / *Min) -10/Mines History --------- Turn | Location | Event 41 | -11/Junkyard | Discovered new exit (range 15) 167 | -11/Junkyard | Entered Materials 219 | -10/Materials | Discovered new exit (range 7) 313 | -10/Materials | Build established: Mutant 347 | -10/Materials | Discovered new exit (range 10) 1077 | -10/Materials | Discovered new exit (range 11) 1324 | -10/Materials | Discovered new exit (range 10) 1745 | -10/Materials | Entered Mines 1952 | -10/Mines | Assembled infested the area 1957 | -10/Mines | Assisted by a Guerilla fighting off Assembled 1985 | -10/Mines | Core integrity fell below 50% 1989 | -10/Mines | Core integrity fell below 20% 1989 | -10/Mines | Destroyed by as-47159 with Assembled Heavy Rifle Last Messages --------------- 01978_ Com. Wheel destroyed. 01978_ as-73225 sneak attacks. 01978_ U-05 Engineer destroyed. 01979_ as-15856 sneak attacks. 01979_ IQ-76U(h) destroyed. 01980_ K-01 Serf collects debris. 01981_ System corrupted: Matter fused (-9). 01982_ Ion Engine destroyed. 01982_ D-53 Grenadier shuts down. 01983_ as-73225 sneak attacks. 01984_ as-02178 sneak attacks. 01984_ K-01 Serf collects debris. 01984_ as-54906 destroyed. 01986_ D-53 Grenadier Cmb. Airjet severed. 01986_ Wheel destroyed. 01987_ as-02178 sneak attacks. 01987_ D-53 Grenadier system corrupted by crushing effect. 01987_ D-53 Grenadier knocked back. 01988_ D-53 Grenadier system terminally corrupted. 01988_ K-01 Serf collects debris. Map ----- +----------------------------------------------------+ | ?????????????????????????????????????????????????? | | ?????????????????????????????????????????????????? | | ?????????????????????????????????????????????????? | | ?????????????????????????????????????????????????? | | ?????????????????????????????????????????????????? | | ?????????????????????????????????????????????????? | | ?????????????????????????????????????????????????? | | ?????????????????????????????????????????????????? | | ?????????????????????????????????????????????????? | | ?????????????????????????????????????????????????? | | ?????????????????????????????????????????????????? | | ???????????????????????????? ????????????????????? | | ??????????????????????????? ????????????????????? | | ???????????????????????????;#????????????????????? | | ???????????????????????????;###??????????????????? | | ???????????????????????????; ##?????????????????? | | ??????????????????????????# ??????????????????? | | ?????????????????????????? ??????????????????? | | ?????????????????????????? aa ???????????????????? | | ???????????????????????##? #???????????????????? | | ???????????????????????#;#aa #???????????????????? | | ???????????????????????#; a##?####?????????????? | | ???????????????????????# a%%## ##????????????? | | ??????????????????????## ! ##???????????? | | ??????????????????????# ###?????????? | | ??????????????????????# @a t ????????? | | ??????????????????????# #????????? | | ??????????????????????# a #?????????? | | ??????????????????????## a ##?????????? | | ???????????????????????# % #??????????? | | ???????????????????????# # ##??????????? | | ??????????????????????### a ##???????????? | | ?????????????????????## %* #????????????? | | ?????????????????????# ##????????????? | | ?????????????????????## !%! #?????????????? | | ??????????????????????## aaa| ###?????????????? | | ???????????????????????##a!%==####???????????????? | | ????????????????????????#!%dk##??????????????????? | | ???????????????????????## = ##??????????????????? | | ????#################### ####???????????????? | | ????# ## ##??????????????? | | ????# """ """ """ ## #??????????????? | | ????# """ """ """ ### ####??????????????? | | ????# """ """ """ #?## ##?????????????????? | | ????# #??## #??????????????????? | | ????# """ """ """ #???## #??????????????????? | | ????# """ """ """ #????# #??????????????????? | | ????# """ """ """ #????# ##??????????????????? | | ????# #????# "#???????????????????? | | ????# """ """ """ #????#%*#???????????????????? | +----------------------------------------------------+ Best States ------------- Heat Dissipation 25 Energy Generation 10 Energy Capacity 250 Matter Stores 300 Matter Capacity 300 Sight Range 16 Terrain Scan Density 10 Resistance: KI 20 Resistance: TH 20 Resistance: EX 20 Resistance: EM 20 Resistance: I 20 Resistance: S 20 Resistance: P 20 Evasion (%) 40 Offensive Hacking 10 Item Schematics ----------------- None Robot Schematics ------------------ None Fabricated ------------ Nothing Alien Tech Used ----------------- None Achievements -------------- None Challenges ------------ None Game ------ Seed TransportCoordinationMatter Manual? 0 Play Time 00:30:03 Cumulative 94.1 hours Start 2023.09.08 @ 19:38:00 End 2023.09.08 @ 20:07:30 Sessions 1 Manual Loads 0 Difficulty Adventurer Special Mode None Game No. 18 Rogue 0 Adventurer 18 Explorer 0 Win Type - Total 0 Types 0/0/0/0/0/0/0/0/0 Lore% 29 Gallery% 40 Achievement% 33 Wizard Run 0 Options --------- ASCII 0 Keyboard 0 Movement Mouse Keybinds 0 Fullscreen 1 Font 12/Tallcaps Map View 76x56 Tactical HUD 1 Map Filters NONE Filters NONE Steam 1 RUN: e3686f7e-fc6b-46d3-914e-05f4609f07ad